[Event "Titled Tuesday Blitz May 23 Early 2023"]
[White "Miranda, Rafael"]
[Black "Martinez Alcantara, Jose Eduardo"]
[WhiteFideId "130990"]
[BlackFideId "3805662"]
[WhiteElo "2204"]
[BlackElo "2711"]
[Result "0-1"]
[Round "07"]
[TimeControl "180+2"]
[Date "2023.05.23"]
[WhiteClock "0:00:33"]
[BlackClock "0:00:17"]

1. e4 {[%clk 0:03:00]}  a6 {[%clk 0:02:59]} 2. d4 {[%clk 0:03:00]}  g6 {[%clk 0:02:58]} 3. Bd3 {[%clk 0:03:01]}  Bg7 {[%clk 0:02:59]} 4. Nf3 {[%clk 0:03:01]}  d6 {[%clk 0:02:59]} 5. O-O {[%clk 0:03:00]}  e5 {[%clk 0:03:00]} 6. dxe5 {[%clk 0:03:00]}  dxe5 {[%clk 0:03:01]} 7. a4 {[%clk 0:02:58]}  Nc6 {[%clk 0:03:01]} 8. Be3 {[%clk 0:02:56]}  Nf6 {[%clk 0:03:01]} 9. Nbd2 {[%clk 0:02:55]}  Qe7 {[%clk 0:02:59]} 10. Nc4 {[%clk 0:02:54]}  O-O {[%clk 0:02:58]} 11. c3 {[%clk 0:02:47]}  Rd8 {[%clk 0:02:54]} 12. Qc2 {[%clk 0:02:47]}  Bg4 {[%clk 0:02:54]} 13. Be2 {[%clk 0:02:45]}  Nh5 {[%clk 0:02:42]} 14. h3 {[%clk 0:02:42]}  Be6 {[%clk 0:02:40]} 15. Rfd1 {[%clk 0:02:40]}  Nf4 {[%clk 0:02:38]} 16. Bf1 {[%clk 0:02:39]}  h6 {[%clk 0:02:37]} 17. Kh2 {[%clk 0:02:39]}  g5 {[%clk 0:02:37]} 18. g3 {[%clk 0:02:36]}  Nxh3 {[%clk 0:02:31]} 19. Bxh3 {[%clk 0:02:36]}  Bxc4 {[%clk 0:02:31]} 20. Bf5 {[%clk 0:02:29]}  Be6 {[%clk 0:02:24]} 21. g4 {[%clk 0:02:29]}  Na5 {[%clk 0:02:18]} 22. Nd2 {[%clk 0:02:05]}  b6 {[%clk 0:01:54]} 23. b4 {[%clk 0:02:05]}  Nb7 {[%clk 0:01:52]} 24. Nf1 {[%clk 0:02:04]}  a5 {[%clk 0:01:48]} 25. b5 {[%clk 0:01:58]}  Nc5 {[%clk 0:01:48]} 26. Bxc5 {[%clk 0:01:50]}  Qxc5 {[%clk 0:01:48]} 27. Ne3 {[%clk 0:01:48]}  Bf8 {[%clk 0:01:39]} 28. Kg2 {[%clk 0:01:46]}  c6 {[%clk 0:01:32]} 29. Bxe6 {[%clk 0:01:32]}  fxe6 {[%clk 0:01:31]} 30. Qb3 {[%clk 0:01:32]}  Kf7 {[%clk 0:01:28]} 31. bxc6 {[%clk 0:01:26]}  Qxc6 {[%clk 0:01:29]} 32. Kf3 {[%clk 0:01:26]}  Kf6 {[%clk 0:01:24]} 33. Rxd8 {[%clk 0:01:14]}  Rxd8 {[%clk 0:01:24]} 34. Rd1 {[%clk 0:01:14]}  Rc8 {[%clk 0:01:04]} 35. Rd3 {[%clk 0:01:11]}  Be7 {[%clk 0:01:05]} 36. Qd1 {[%clk 0:01:00]}  Kg6 {[%clk 0:00:59]} 37. Rd7 {[%clk 0:00:57]}  Rf8+ {[%clk 0:00:58]} 38. Kg3 {[%clk 0:00:49]}  Bc5 {[%clk 0:00:46]} 39. Qd3 {[%clk 0:00:45]}  Bxe3 {[%clk 0:00:43]} 40. fxe3 {[%clk 0:00:45]}  Qc5 {[%clk 0:00:27]} 41. Rd6 {[%clk 0:00:41]}  Rf6 {[%clk 0:00:28]} 42. Kh3 {[%clk 0:00:39]}  Qa3 {[%clk 0:00:20]} 43. Qb5 {[%clk 0:00:39]}  Qxd6 {[%clk 0:00:17]} 44. Qe8+ {[%clk 0:00:33]}  Kg7 {[%clk 0:00:17]} 0-1


[Site "https://www.chess.com"]

[Event "Titled Tuesday Blitz May 23 Early 2023"]
[White "Zhigalko, Sergei"]
[Black "Nagare Kaivalya Sandip"]
[WhiteFideId "13502956"]
[BlackFideId "25957929"]
[WhiteElo "2626"]
[BlackElo "2024"]
[Result "1-0"]
[Round "07"]
[TimeControl "180+2"]
[Date "2023.05.23"]
[WhiteClock "0:00:11"]
[BlackClock "0:00:13"]

1. e4 {[%clk 0:03:00]}  c5 {[%clk 0:02:59]} 2. c3 {[%clk 0:03:01]}  Nf6 {[%clk 0:02:58]} 3. e5 {[%clk 0:03:01]}  Nd5 {[%clk 0:02:58]} 4. Nf3 {[%clk 0:03:02]}  d6 {[%clk 0:02:54]} 5. Bc4 {[%clk 0:03:02]}  Nb6 {[%clk 0:02:54]} 6. Bb3 {[%clk 0:03:03]}  d5 {[%clk 0:02:52]} 7. d4 {[%clk 0:03:00]}  c4 {[%clk 0:02:48]} 8. Bc2 {[%clk 0:03:01]}  Bg4 {[%clk 0:02:48]} 9. h3 {[%clk 0:03:01]}  Bh5 {[%clk 0:02:48]} 10. g4 {[%clk 0:02:54]}  Bg6 {[%clk 0:02:47]} 11. e6 {[%clk 0:02:55]}  Nc6 {[%clk 0:02:33]} 12. Bxg6 {[%clk 0:02:42]}  fxg6 {[%clk 0:02:28]} 13. Ng5 {[%clk 0:02:43]}  Qd6 {[%clk 0:02:20]} 14. Qf3 {[%clk 0:02:41]}  Nd8 {[%clk 0:02:07]} 15. O-O {[%clk 0:02:26]}  h5 {[%clk 0:01:55]} 16. Nf7 {[%clk 0:02:11]}  Nxf7 {[%clk 0:01:35]} 17. Qxf7+ {[%clk 0:02:10]}  Kd8 {[%clk 0:01:35]} 18. Bf4 {[%clk 0:02:11]}  Qc6 {[%clk 0:01:32]} 19. g5 {[%clk 0:02:03]}  Qe8 {[%clk 0:01:28]} 20. Qxe8+ {[%clk 0:01:57]}  Kxe8 {[%clk 0:01:28]} 21. Nd2 {[%clk 0:01:49]}  Rc8 {[%clk 0:01:26]} 22. Rfe1 {[%clk 0:01:38]}  Rc6 {[%clk 0:01:24]} 23. Rac1 {[%clk 0:00:52]}  Na4 {[%clk 0:01:19]} 24. Rc2 {[%clk 0:00:52]}  h4 {[%clk 0:01:12]} 25. Kg2 {[%clk 0:00:47]}  b5 {[%clk 0:01:00]} 26. a3 {[%clk 0:00:45]}  Nb6 {[%clk 0:00:57]} 27. Nf3 {[%clk 0:00:39]}  a6 {[%clk 0:00:45]} 28. Rce2 {[%clk 0:00:38]}  Na4 {[%clk 0:00:44]} 29. Nh2 {[%clk 0:00:28]}  Kd8 {[%clk 0:00:40]} 30. Kf3 {[%clk 0:00:28]}  Kc8 {[%clk 0:00:40]} 31. Kg4 {[%clk 0:00:28]}  Kb7 {[%clk 0:00:38]} 32. Nf3 {[%clk 0:00:22]}  a5 {[%clk 0:00:38]} 33. Nxh4 {[%clk 0:00:18]}  Rb6 {[%clk 0:00:30]} 34. Nxg6 {[%clk 0:00:18]}  Rg8 {[%clk 0:00:31]} 35. Ra1 {[%clk 0:00:13]}  Ra6 {[%clk 0:00:24]} 36. h4 {[%clk 0:00:13]}  Nb6 {[%clk 0:00:19]} 37. h5 {[%clk 0:00:12]}  b4 {[%clk 0:00:18]} 38. axb4 {[%clk 0:00:12]}  axb4 {[%clk 0:00:19]} 39. Rxa6 {[%clk 0:00:12]}  Kxa6 {[%clk 0:00:19]} 40. Be5 {[%clk 0:00:10]}  Na4 {[%clk 0:00:16]} 41. cxb4 {[%clk 0:00:09]}  Kb5 {[%clk 0:00:17]} 42. Nxf8 {[%clk 0:00:09]}  Rxf8 {[%clk 0:00:17]} 43. Bxg7 {[%clk 0:00:10]}  Rc8 {[%clk 0:00:16]} 44. h6 {[%clk 0:00:10]}  Kxb4 {[%clk 0:00:16]} 45. h7 {[%clk 0:00:10]}  Kb3 {[%clk 0:00:16]} 46. h8=Q {[%clk 0:00:08]}  Rxh8 {[%clk 0:00:17]} 47. Bxh8 {[%clk 0:00:09]}  Nxb2 {[%clk 0:00:17]} 48. g6 {[%clk 0:00:10]}  c3 {[%clk 0:00:18]} 49. g7 {[%clk 0:00:10]}  c2 {[%clk 0:00:18]} 50. Rxc2 {[%clk 0:00:10]}  Kxc2 {[%clk 0:00:13]} 51. g8=Q {[%clk 0:00:11]} 1-0


[Site "https://www.chess.com"]

[Event "Titled Tuesday Blitz May 23 Early 2023"]
[White "Siva Mahadevan"]
[Black "Manukyan, Sargis A."]
[WhiteFideId "25043153"]
[BlackFideId "13303970"]
[WhiteElo "2249"]
[BlackElo "2187"]
[Result "1-0"]
[Round "07"]
[TimeControl "180+2"]
[Date "2023.05.23"]
[WhiteClock "0:00:36"]
[BlackClock "0:00:06"]

1. e4 {[%clk 0:02:36]}  c5 {[%clk 0:02:59]} 2. Nf3 {[%clk 0:02:35]}  d6 {[%clk 0:03:00]} 3. d4 {[%clk 0:02:35]}  cxd4 {[%clk 0:03:01]} 4. Nxd4 {[%clk 0:02:36]}  Nf6 {[%clk 0:03:02]} 5. Nc3 {[%clk 0:02:36]}  g6 {[%clk 0:03:02]} 6. Be3 {[%clk 0:02:36]}  Bg7 {[%clk 0:03:03]} 7. f3 {[%clk 0:02:37]}  O-O {[%clk 0:03:04]} 8. Qd2 {[%clk 0:02:38]}  Nc6 {[%clk 0:03:04]} 9. Bc4 {[%clk 0:02:38]}  Bd7 {[%clk 0:03:04]} 10. h4 {[%clk 0:02:39]}  Rc8 {[%clk 0:03:05]} 11. Bb3 {[%clk 0:02:39]}  Nxd4 {[%clk 0:03:05]} 12. Bxd4 {[%clk 0:02:40]}  b5 {[%clk 0:03:06]} 13. h5 {[%clk 0:02:40]}  a5 {[%clk 0:03:07]} 14. hxg6 {[%clk 0:02:41]}  hxg6 {[%clk 0:03:08]} 15. a3 {[%clk 0:02:37]}  e6 {[%clk 0:02:56]} 16. Be3 {[%clk 0:02:07]}  b4 {[%clk 0:02:48]} 17. axb4 {[%clk 0:02:08]}  axb4 {[%clk 0:02:49]} 18. Ne2 {[%clk 0:02:08]}  d5 {[%clk 0:02:36]} 19. e5 {[%clk 0:02:05]}  Nh5 {[%clk 0:02:36]} 20. g4 {[%clk 0:01:29]}  Bxe5 {[%clk 0:02:13]} 21. gxh5 {[%clk 0:01:19]}  Bxb2 {[%clk 0:02:13]} 22. Bd4 {[%clk 0:01:20]}  Bxd4 {[%clk 0:01:42]} 23. Qxd4 {[%clk 0:01:19]}  g5 {[%clk 0:01:18]} 24. f4 {[%clk 0:01:16]}  g4 {[%clk 0:01:11]} 25. f5 {[%clk 0:01:14]}  exf5 {[%clk 0:01:07]} 26. Bxd5 {[%clk 0:01:10]}  Qg5 {[%clk 0:00:47]} 27. h6 {[%clk 0:01:09]}  Kh7 {[%clk 0:00:46]} 28. Ra7 {[%clk 0:01:09]}  Rcd8 {[%clk 0:00:41]} 29. Rh5 {[%clk 0:00:58]}  Qg6 {[%clk 0:00:37]} 30. Nf4 {[%clk 0:00:57]}  Qg8 {[%clk 0:00:25]} 31. Qf6 {[%clk 0:00:57]}  Qh8 {[%clk 0:00:18]} 32. Rxf5 {[%clk 0:00:37]}  Bxf5 {[%clk 0:00:11]} 33. Qxf5+ {[%clk 0:00:37]}  Kxh6 {[%clk 0:00:11]} 34. Ra6+ {[%clk 0:00:35]}  Kg7 {[%clk 0:00:06]} 35. Rg6+ {[%clk 0:00:35]}  fxg6 {[%clk 0:00:06]} 36. Qxg6# {[%clk 0:00:36]} 1-0


[Site "https://www.chess.com"]

[Event "Titled Tuesday Blitz May 23 Early 2023"]
[White "Molina, Roberto Junio Brito"]
[Black "Melikyan, Gnel"]
[WhiteFideId "2109450"]
[BlackFideId "54109990"]
[WhiteElo "2376"]
[BlackElo "2138"]
[Result "1/2-1/2"]
[Round "07"]
[TimeControl "180+2"]
[Date "2023.05.23"]
[WhiteClock "0:00:06"]
[BlackClock "0:00:18"]

1. e4 {[%clk 0:03:00]}  e5 {[%clk 0:02:57]} 2. Nf3 {[%clk 0:03:00]}  Nf6 {[%clk 0:02:58]} 3. Nxe5 {[%clk 0:02:59]}  d6 {[%clk 0:02:58]} 4. Nf3 {[%clk 0:03:00]}  Nxe4 {[%clk 0:02:59]} 5. d4 {[%clk 0:02:59]}  d5 {[%clk 0:02:59]} 6. Bd3 {[%clk 0:02:59]}  Bd6 {[%clk 0:03:00]} 7. c4 {[%clk 0:02:58]}  c6 {[%clk 0:03:00]} 8. O-O {[%clk 0:02:58]}  O-O {[%clk 0:03:00]} 9. Nc3 {[%clk 0:02:58]}  Nxc3 {[%clk 0:03:00]} 10. bxc3 {[%clk 0:02:59]}  dxc4 {[%clk 0:03:00]} 11. Bxc4 {[%clk 0:02:59]}  Bg4 {[%clk 0:03:00]} 12. h3 {[%clk 0:02:59]}  Bh5 {[%clk 0:03:00]} 13. g4 {[%clk 0:03:00]}  Bg6 {[%clk 0:03:00]} 14. Ne5 {[%clk 0:03:00]}  Bxe5 {[%clk 0:02:57]} 15. dxe5 {[%clk 0:03:01]}  Qxd1 {[%clk 0:02:57]} 16. Rxd1 {[%clk 0:03:02]}  b5 {[%clk 0:02:32]} 17. Bb3 {[%clk 0:02:56]}  a5 {[%clk 0:02:33]} 18. a4 {[%clk 0:02:37]}  h5 {[%clk 0:02:18]} 19. f4 {[%clk 0:02:33]}  hxg4 {[%clk 0:02:17]} 20. hxg4 {[%clk 0:02:34]}  Be4 {[%clk 0:02:18]} 21. Kf2 {[%clk 0:02:33]}  Na6 {[%clk 0:01:47]} 22. axb5 {[%clk 0:02:32]}  Nc5 {[%clk 0:01:45]} 23. Bc4 {[%clk 0:02:30]}  cxb5 {[%clk 0:01:45]} 24. Bxb5 {[%clk 0:02:30]}  Rfb8 {[%clk 0:01:40]} 25. c4 {[%clk 0:02:19]}  Bc2 {[%clk 0:01:25]} 26. Rd5 {[%clk 0:02:12]}  Nb3 {[%clk 0:01:22]} 27. Ra2 {[%clk 0:02:09]}  Be4 {[%clk 0:01:09]} 28. Rd1 {[%clk 0:02:07]}  Rd8 {[%clk 0:01:08]} 29. Re1 {[%clk 0:02:00]}  Bd3 {[%clk 0:01:04]} 30. Be3 {[%clk 0:01:57]}  Nd4 {[%clk 0:00:57]} 31. Bxd4 {[%clk 0:01:30]}  Rxd4 {[%clk 0:00:57]} 32. Rd1 {[%clk 0:01:23]}  Rad8 {[%clk 0:00:51]} 33. Rxa5 {[%clk 0:01:09]}  Bxc4 {[%clk 0:00:35]} 34. Rxd4 {[%clk 0:01:08]}  Rxd4 {[%clk 0:00:36]} 35. Ke3 {[%clk 0:01:04]}  Rd3+ {[%clk 0:00:35]} 36. Ke4 {[%clk 0:01:02]}  Bxb5 {[%clk 0:00:35]} 37. Rxb5 {[%clk 0:01:02]}  Rg3 {[%clk 0:00:30]} 38. Rb8+ {[%clk 0:01:00]}  Kh7 {[%clk 0:00:30]} 39. Kf5 {[%clk 0:01:00]}  g6+ {[%clk 0:00:28]} 40. Kg5 {[%clk 0:00:59]}  Kg7 {[%clk 0:00:27]} 41. Rb7 {[%clk 0:00:58]}  Re3 {[%clk 0:00:27]} 42. Re7 {[%clk 0:00:53]}  Re4 {[%clk 0:00:19]} 43. f5 {[%clk 0:00:44]}  Rxe5 {[%clk 0:00:16]} 44. Rxe5 {[%clk 0:00:33]}  f6+ {[%clk 0:00:17]} 45. Kf4 {[%clk 0:00:34]}  fxe5+ {[%clk 0:00:17]} 46. Kxe5 {[%clk 0:00:35]}  gxf5 {[%clk 0:00:18]} 47. Kxf5 {[%clk 0:00:17]}  Kf7 {[%clk 0:00:17]} 48. g5 {[%clk 0:00:04]}  Kg7 {[%clk 0:00:17]} 49. g6 {[%clk 0:00:03]}  Kg8 {[%clk 0:00:17]} 50. Kf6 {[%clk 0:00:04]}  Kf8 {[%clk 0:00:18]} 51. g7+ {[%clk 0:00:05]}  Kg8 {[%clk 0:00:18]} 52. Kg6 {[%clk 0:00:06]} 1/2-1/2


[Site "https://www.chess.com"]

[Event "Titled Tuesday Blitz May 23 Early 2023"]
[White "Al-Tarboush, Ward"]
[Black "Ilamparthi A R"]
[WhiteFideId "7601450"]
[BlackFideId "45015775"]
[WhiteElo "2265"]
[BlackElo "2348"]
[Result "1-0"]
[Round "07"]
[TimeControl "180+2"]
[Date "2023.05.23"]
[WhiteClock "0:00:09"]
[BlackClock "0:00:13"]

1. e4 {[%clk 0:03:00]}  c5 {[%clk 0:02:59]} 2. Nf3 {[%clk 0:03:01]}  e6 {[%clk 0:02:57]} 3. d4 {[%clk 0:03:01]}  cxd4 {[%clk 0:02:57]} 4. Nxd4 {[%clk 0:03:01]}  Nf6 {[%clk 0:02:57]} 5. Nc3 {[%clk 0:02:58]}  Nc6 {[%clk 0:02:58]} 6. Bf4 {[%clk 0:02:57]}  Bb4 {[%clk 0:02:53]} 7. Nb5 {[%clk 0:02:56]}  Nxe4 {[%clk 0:02:53]} 8. Qf3 {[%clk 0:02:56]}  d5 {[%clk 0:02:50]} 9. Nc7+ {[%clk 0:02:55]}  Kf8 {[%clk 0:02:50]} 10. Nxa8 {[%clk 0:02:49]}  Nd4 {[%clk 0:02:48]} 11. Qd3 {[%clk 0:02:32]}  Qf6 {[%clk 0:02:42]} 12. Be3 {[%clk 0:02:09]}  Nxc3 {[%clk 0:01:40]} 13. Bxd4 {[%clk 0:01:47]}  Nb5+ {[%clk 0:01:33]} 14. c3 {[%clk 0:01:38]}  Nxd4 {[%clk 0:01:23]} 15. cxb4 {[%clk 0:01:30]}  Qe5+ {[%clk 0:01:21]} 16. Kd1 {[%clk 0:01:30]}  Bd7 {[%clk 0:01:15]} 17. Rc1 {[%clk 0:01:09]}  Ke7 {[%clk 0:00:33]} 18. Nc7 {[%clk 0:01:09]}  Rc8 {[%clk 0:00:32]} 19. Qe3 {[%clk 0:01:09]}  Qh5+ {[%clk 0:00:25]} 20. Be2 {[%clk 0:01:02]}  Nxe2 {[%clk 0:00:21]} 21. Qxe2 {[%clk 0:01:03]}  Qxe2+ {[%clk 0:00:21]} 22. Kxe2 {[%clk 0:01:03]}  Kd6 {[%clk 0:00:22]} 23. Nxd5 {[%clk 0:00:45]}  Rxc1 {[%clk 0:00:21]} 24. Rxc1 {[%clk 0:00:44]}  exd5 {[%clk 0:00:22]} 25. Ke3 {[%clk 0:00:43]}  Bc6 {[%clk 0:00:18]} 26. Kd4 {[%clk 0:00:43]}  f6 {[%clk 0:00:19]} 27. b3 {[%clk 0:00:42]}  a6 {[%clk 0:00:19]} 28. a4 {[%clk 0:00:42]}  Bd7 {[%clk 0:00:19]} 29. h3 {[%clk 0:00:39]}  b6 {[%clk 0:00:19]} 30. g4 {[%clk 0:00:37]}  h6 {[%clk 0:00:18]} 31. f4 {[%clk 0:00:37]}  g6 {[%clk 0:00:17]} 32. Re1 {[%clk 0:00:18]}  Bc6 {[%clk 0:00:16]} 33. h4 {[%clk 0:00:14]}  Bd7 {[%clk 0:00:16]} 34. g5 {[%clk 0:00:14]}  fxg5 {[%clk 0:00:13]} 35. fxg5 {[%clk 0:00:12]}  h5 {[%clk 0:00:13]} 36. Re5 {[%clk 0:00:08]}  Be6 {[%clk 0:00:13]} 37. Re1 {[%clk 0:00:06]}  Bd7 {[%clk 0:00:13]} 38. Rf1 {[%clk 0:00:07]}  Bf5 {[%clk 0:00:13]} 39. Rf2 {[%clk 0:00:07]}  Ke6 {[%clk 0:00:13]} 40. Rf3 {[%clk 0:00:08]}  Kd6 {[%clk 0:00:13]} 41. Rf1 {[%clk 0:00:07]}  Ke6 {[%clk 0:00:13]} 42. Rf3 {[%clk 0:00:07]}  Kd6 {[%clk 0:00:13]} 43. Rc3 {[%clk 0:00:07]}  Bd7 {[%clk 0:00:12]} 44. Re3 {[%clk 0:00:06]}  Be6 {[%clk 0:00:12]} 45. Re5 {[%clk 0:00:06]}  Bf7 {[%clk 0:00:12]} 46. a5 {[%clk 0:00:06]}  b5 {[%clk 0:00:12]} 47. Re3 {[%clk 0:00:06]}  Be6 {[%clk 0:00:12]} 48. Rf3 {[%clk 0:00:06]}  Bf5 {[%clk 0:00:12]} 49. Rf1 {[%clk 0:00:07]}  Ke6 {[%clk 0:00:11]} 50. Rc1 {[%clk 0:00:07]}  Kd6 {[%clk 0:00:11]} 51. Re1 {[%clk 0:00:06]}  Be6 {[%clk 0:00:11]} 52. Re2 {[%clk 0:00:06]}  Bf7 {[%clk 0:00:10]} 53. Rf2 {[%clk 0:00:07]}  Be6 {[%clk 0:00:10]} 54. Rf8 {[%clk 0:00:07]}  Bd7 {[%clk 0:00:09]} 55. Rd8 {[%clk 0:00:07]}  Kc7 {[%clk 0:00:09]} 56. Rxd7+ {[%clk 0:00:07]}  Kxd7 {[%clk 0:00:10]} 57. Kxd5 {[%clk 0:00:07]}  Kc7 {[%clk 0:00:11]} 58. Kc5 {[%clk 0:00:07]}  Kd7 {[%clk 0:00:11]} 59. Kb6 {[%clk 0:00:08]}  Kd6 {[%clk 0:00:11]} 60. Kxa6 {[%clk 0:00:08]}  Kc6 {[%clk 0:00:12]} 61. Ka7 {[%clk 0:00:09]}  Kc7 {[%clk 0:00:12]} 62. a6 {[%clk 0:00:08]}  Kc6 {[%clk 0:00:12]} 63. Kb8 {[%clk 0:00:08]}  Kb6 {[%clk 0:00:12]} 64. a7 {[%clk 0:00:09]}  Kc6 {[%clk 0:00:12]} 65. a8=Q+ {[%clk 0:00:09]}  Kb6 {[%clk 0:00:13]} 66. Qb7# {[%clk 0:00:09]} 1-0


[Site "https://www.chess.com"]

[Event "Titled Tuesday Blitz May 23 Early 2023"]
[White "brm72"]
[Black "Harsh Suresh"]
[BlackFideId "45018464"]
[WhiteElo "2598"]
[BlackElo "2209"]
[Result "1/2-1/2"]
[Round "07"]
[TimeControl "180+2"]
[Date "2023.05.23"]
[WhiteClock "0:00:06"]
[BlackClock "0:00:10"]

1. d4 {[%clk 0:03:00]}  g6 {[%clk 0:02:59]} 2. c4 {[%clk 0:03:00]}  Bg7 {[%clk 0:02:59]} 3. Nc3 {[%clk 0:03:00]}  e6 {[%clk 0:02:59]} 4. Nf3 {[%clk 0:02:59]}  Ne7 {[%clk 0:03:00]} 5. g3 {[%clk 0:02:59]}  b6 {[%clk 0:02:57]} 6. Bg2 {[%clk 0:02:59]}  Bb7 {[%clk 0:02:58]} 7. O-O {[%clk 0:02:59]}  O-O {[%clk 0:02:59]} 8. e3 {[%clk 0:02:52]}  d6 {[%clk 0:02:59]} 9. b3 {[%clk 0:02:51]}  Nd7 {[%clk 0:02:59]} 10. Bb2 {[%clk 0:02:49]}  a6 {[%clk 0:02:59]} 11. Qd2 {[%clk 0:02:48]}  h6 {[%clk 0:02:57]} 12. Rac1 {[%clk 0:02:48]}  Ra7 {[%clk 0:02:57]} 13. Rfd1 {[%clk 0:02:48]}  Qa8 {[%clk 0:02:57]} 14. Ne1 {[%clk 0:02:41]}  Nf6 {[%clk 0:02:52]} 15. c5 {[%clk 0:02:21]}  Bxg2 {[%clk 0:02:48]} 16. Nxg2 {[%clk 0:02:20]}  bxc5 {[%clk 0:02:20]} 17. dxc5 {[%clk 0:02:19]}  d5 {[%clk 0:02:20]} 18. Nf4 {[%clk 0:01:53]}  Rb8 {[%clk 0:02:16]} 19. Nd3 {[%clk 0:01:52]}  Nc6 {[%clk 0:02:16]} 20. Ne2 {[%clk 0:01:45]}  a5 {[%clk 0:02:13]} 21. Nd4 {[%clk 0:01:40]}  a4 {[%clk 0:02:03]} 22. Nxc6 {[%clk 0:01:38]}  Qxc6 {[%clk 0:02:04]} 23. b4 {[%clk 0:01:37]}  a3 {[%clk 0:02:00]} 24. Bd4 {[%clk 0:01:32]}  Qa4 {[%clk 0:01:53]} 25. Rb1 {[%clk 0:01:23]}  Rab7 {[%clk 0:01:41]} 26. f3 {[%clk 0:01:21]}  c6 {[%clk 0:01:35]} 27. Rb3 {[%clk 0:01:21]}  Nd7 {[%clk 0:01:34]} 28. Bxg7 {[%clk 0:01:18]}  Kxg7 {[%clk 0:01:35]} 29. Qc3+ {[%clk 0:01:18]}  f6 {[%clk 0:01:30]} 30. f4 {[%clk 0:01:10]}  h5 {[%clk 0:01:06]} 31. Rdb1 {[%clk 0:01:08]}  Ra7 {[%clk 0:01:05]} 32. Re1 {[%clk 0:01:00]}  Qa6 {[%clk 0:00:42]} 33. Rc1 {[%clk 0:00:53]}  Raa8 {[%clk 0:00:16]} 34. Kf2 {[%clk 0:00:51]}  h4 {[%clk 0:00:15]} 35. g4 {[%clk 0:00:51]}  h3 {[%clk 0:00:15]} 36. Kg3 {[%clk 0:00:48]}  Rh8 {[%clk 0:00:15]} 37. b5 {[%clk 0:00:28]}  cxb5 {[%clk 0:00:16]} 38. c6 {[%clk 0:00:26]}  Nb6 {[%clk 0:00:16]} 39. Qc5 {[%clk 0:00:21]}  Qa7 {[%clk 0:00:11]} 40. Rxb5 {[%clk 0:00:20]}  Nc4 {[%clk 0:00:11]} 41. Rb7+ {[%clk 0:00:20]}  Qxb7 {[%clk 0:00:10]} 42. cxb7 {[%clk 0:00:21]}  Raf8 {[%clk 0:00:08]} 43. Rb1 {[%clk 0:00:17]}  Nd2 {[%clk 0:00:07]} 44. Rb6 {[%clk 0:00:16]}  Ne4+ {[%clk 0:00:06]} 45. Kf3 {[%clk 0:00:17]}  Nxc5 {[%clk 0:00:07]} 46. Nxc5 {[%clk 0:00:18]}  Kf7 {[%clk 0:00:05]} 47. Nd7 {[%clk 0:00:16]}  Rb8 {[%clk 0:00:05]} 48. Nxb8 {[%clk 0:00:17]}  Rxb8 {[%clk 0:00:06]} 49. f5 {[%clk 0:00:15]}  gxf5 {[%clk 0:00:06]} 50. gxf5 {[%clk 0:00:15]}  exf5 {[%clk 0:00:04]} 51. Kf4 {[%clk 0:00:16]}  Ke7 {[%clk 0:00:05]} 52. Kxf5 {[%clk 0:00:16]}  Kd7 {[%clk 0:00:06]} 53. Kxf6 {[%clk 0:00:16]}  Kc7 {[%clk 0:00:07]} 54. Rb3 {[%clk 0:00:15]}  Kc6 {[%clk 0:00:07]} 55. Ke5 {[%clk 0:00:13]}  Kc5 {[%clk 0:00:07]} 56. Ke6 {[%clk 0:00:11]}  Kc6 {[%clk 0:00:07]} 57. Ke7 {[%clk 0:00:09]}  Kc7 {[%clk 0:00:08]} 58. Ke6 {[%clk 0:00:09]}  Kc6 {[%clk 0:00:08]} 59. Rb1 {[%clk 0:00:09]}  Re8+ {[%clk 0:00:01]} 60. Kf7 {[%clk 0:00:09]}  Rb8 {[%clk 0:00:02]} 61. Ke7 {[%clk 0:00:10]}  Kc7 {[%clk 0:00:03]} 62. Ke6 {[%clk 0:00:10]}  Kc6 {[%clk 0:00:03]} 63. Ke5 {[%clk 0:00:08]}  Kc5 {[%clk 0:00:03]} 64. Rb3 {[%clk 0:00:07]}  Re8+ {[%clk 0:00:03]} 65. Kf4 {[%clk 0:00:05]}  Rb8 {[%clk 0:00:04]} 66. Kg3 {[%clk 0:00:06]}  Kc6 {[%clk 0:00:04]} 67. Kxh3 {[%clk 0:00:06]}  Kc7 {[%clk 0:00:05]} 68. Kg4 {[%clk 0:00:06]}  Rg8+ {[%clk 0:00:05]} 69. Kf4 {[%clk 0:00:06]}  Kb8 {[%clk 0:00:06]} 70. Ke5 {[%clk 0:00:06]}  Rg5+ {[%clk 0:00:06]} 71. Kd4 {[%clk 0:00:06]}  Rh5 {[%clk 0:00:07]} 72. Rxa3 {[%clk 0:00:05]}  Kxb7 {[%clk 0:00:08]} 73. Rb3+ {[%clk 0:00:05]}  Kc6 {[%clk 0:00:08]} 74. Rb2 {[%clk 0:00:05]}  Rh4+ {[%clk 0:00:08]} 75. Kd3 {[%clk 0:00:06]}  Kc5 {[%clk 0:00:08]} 76. Rc2+ {[%clk 0:00:06]}  Kd6 {[%clk 0:00:08]} 77. a3 {[%clk 0:00:04]}  Ke5 {[%clk 0:00:06]} 78. Ra2 {[%clk 0:00:04]}  Ra4 {[%clk 0:00:06]} 79. Kc3 {[%clk 0:00:03]}  Ke4 {[%clk 0:00:06]} 80. Kb3 {[%clk 0:00:04]}  Ra6 {[%clk 0:00:05]} 81. Re2 {[%clk 0:00:04]}  Kd3 {[%clk 0:00:06]} 82. Re1 {[%clk 0:00:04]}  Kd2 {[%clk 0:00:07]} 83. Rg1 {[%clk 0:00:04]}  Kxe3 {[%clk 0:00:07]} 84. a4 {[%clk 0:00:05]}  d4 {[%clk 0:00:07]} 85. Kb4 {[%clk 0:00:04]}  d3 {[%clk 0:00:08]} 86. Kb5 {[%clk 0:00:05]}  Rh6 {[%clk 0:00:08]} 87. Rg2 {[%clk 0:00:05]}  Rh5+ {[%clk 0:00:08]} 88. Kb6 {[%clk 0:00:04]}  Rh6+ {[%clk 0:00:09]} 89. Kb5 {[%clk 0:00:05]}  Rh5+ {[%clk 0:00:09]} 90. Kb6 {[%clk 0:00:05]}  Rh6+ {[%clk 0:00:10]} 91. Kb5 {[%clk 0:00:06]} 1/2-1/2


[Site "https://www.chess.com"]